[Event "3rd Sharjah Masters 2019"]
[Site "Sharjah"]
[Date "2019.03.26"]
[Round "5.28"]
[White "Stany, G.A."]
[Black "Saurabh Anand"]
[Result "1/2-1/2"]
[ECO "C96"]
[WhiteElo "2507"]
[BlackElo "2385"]
[Annotator "ChessBase"]
[PlyCount "73"]
[EventDate "2019.03.22"]
[EventType "swiss"]
[EventCountry "UAE"]
[SourceTitle "playchess.com"]
[Source "ChessBase"]
[SourceQuality "1"]
[TimeControl "5400+30"]

1. e4 {[%emt 0:00:00]} e5 {[%emt 0:00:00]} 2. Nf3 {[%emt 0:00:00]} Nc6 {[%emt 0:00:00]} 3. Bb5 {[%emt 0:00:00]} a6 {[%emt 0:00:02]} 4. Ba4 {[%emt 0:00:00]} Nf6 {[%emt 0:00:08]} 5. O-O {[%emt 0:00:00]} Be7 {[%emt 0:00:07]} 6. Re1 {[%emt 0:00:00]} b5 {[%emt 0:00:06]} 7. Bb3 {[%emt 0:00:06]} d6 {[%emt 0:00:10]} 8. c3 {[%emt 0:00:06]} O-O {[%emt 0:00:09]} 9. h3 {[%emt 0:00:06]} Na5 {[%emt 0:00:13]} 10. Bc2 {[%emt 0:00:04]} c5 {[%emt 0:00:08]} 11. d4 {[%emt 0:00:05]} Nd7 {[%emt 0:00:09]} 12. Nbd2 {[%emt 0:00:06]} exd4 {[%emt 0:00:10]} 13. cxd4 {[%emt 0:00:04]} Nc6 {[%emt 0:00:11]} 14. d5 {[%emt 0:00:08]} Nce5 {[%emt 0:00:09]} 15. a4 {[%emt 0:00:08]} Bb7 {[%emt 0:00:09]} 16. Nxe5 {[%emt 0:00:20]} Nxe5 {[%emt 0:00:09]} 17. f4 {[%emt 0:00:08]} Ng6 {[%emt 0:00:09]} 18. Nf3 {[%emt 0:00:06]} Re8 {[%emt 0:00:13]} 19. Kh2 {[%emt 0:23:59]} Nh4 {[%emt 0:00:40]} 20. Ng1 {[%emt 0:01:34]} Bf6 {[%emt 0:00:11]} 21. g3 {[%emt 0:04:21]} Ng6 {[%emt 0:00:25]} 22. Rb1 {[%emt 0:00:12]} Bc8 {[%emt 0:07:44]} 23. b3 {[%emt 0:03:20]} Bd7 {[%emt 0:02:22]} 24. Nf3 {[%emt 0:09:35]} Qc7 {[%emt 0:04:36]} 25. Bd2 {[%emt 0:25:04]} Rac8 {[%emt 0:16:33]} 26. Bd3 {[%emt 0:02:44]} c4 {[%emt 0:01:57]} 27. bxc4 {[%emt 0:00:15]} bxc4 {[%emt 0:00:11]} 28. Bc2 {[%emt 0:00:52]} Rb8 {[%emt 0:01:48]} 29. Rxb8 {[%emt 0:10:39]} Qxb8 {[%emt 0:00:44]} 30. Re2 {[%emt 0:08:57]} Qc8 {[%emt 0:03:57]} 31. Bb4 {[%emt 0:00:38]} Qb8 {[%emt 0:02:14]} 32. Qe1 {[%emt 0:00:10]} Qc7 {[%emt 0:17:42]} 33. Re3 {[%emt 0:06:08]} Bb2 {[%emt 0:02:23]} 34. Ba5 {[%emt 0:03:25]} Qc5 {[%emt 0:04:25]} 35. Bb4 {[%emt 0:00:05]} Qc7 {[%emt 0:01:11]} 36. Ba5 {[%emt 0:01:02]} Qc5 {[%emt 0:00:13]} 37. Bb4 {[%emt 0:00:07]} 1/2-1/2

[Event "3rd Sharjah Masters 2019"]
[Site "Sharjah"]
[Date "2019.03.26"]
[Round "5.31"]
[White "Harsha, Bharathakoti"]
[Black "Omar, Noaman"]
[Result "1-0"]
[ECO "A13"]
[WhiteElo "2497"]
[BlackElo "2356"]
[Annotator "RC"]
[PlyCount "83"]
[EventDate "2019.03.22"]
[EventType "swiss"]
[EventCountry "UAE"]
[SourceTitle "playchess.com"]
[Source "ChessBase"]
[SourceQuality "1"]
[TimeControl "5400+30"]

1. c4 {[%emt 0:00:00]} e6 {[%emt 0:00:00]} 2. Nf3 {[%emt 0:00:06]} d5 {[%emt 0:00:00]} 3. e3 {[%emt 0:01:09]} Nf6 {[%emt 0:00:29]} 4. Nc3 {[%emt 0:00:03]} a6 {[%emt 0:01:30]} 5. b3 {[%emt 0:01:20]} b6 {[%emt 0:01:04]} 6. Bb2 {[%emt 0:03:40]} Bb7 {[%emt 0:00:34]} 7. g3 {[%emt 0:00:13]} Nbd7 {[%emt 0:01:44]} 8. cxd5 {[%emt 0:00:38]} exd5 {[%emt 0:02:13]} 9. Bg2 {[%emt 0:00:25]} Bd6 {[%emt 0:01:39]} 10. O-O {[%emt 0:00:29]} O-O {[%emt 0:00:08]} 11. Nh4 {[%emt 0:11:42]} g6 {[%emt 0:04:48]} 12. Re1 {[%emt 0:03:34]} Re8 {[%emt 0:01:14]} 13. Rc1 {[%emt 0:00:45]} Ne4 {[%emt 0:06:36]} 14. d3 {[%emt 0:04:58]} Nxc3 {[%emt 0:01:06]} 15. Bxc3 {[%emt 0:00:13]} Be5 {[%emt 0:00:58]} 16. Bxe5 {[%emt 0:03:56]} Nxe5 {[%emt 0:02:34]} 17. d4 {[%emt 0:00:05]} Nd7 {[%emt 0:00:27]} 18. Re2 {[%emt 0:02:52]} a5 {[%emt 0:03:21]} 19. Nf3 {[%emt 0:09:25]} c6 {[%emt 0:08:59]} 20. Ne1 {[%emt 0:02:34]} Qe7 {[%emt 0:03:50]} 21. Nd3 {[%emt 0:03:21]} Qd6 {[%emt 0:00:42]} 22. Rec2 {[%emt 0:02:22]} Re7 {[%emt 0:00:25]} 23. Rc3 {[%emt 0:08:59]} Kg7 {[%emt 0:04:29]} 24. Qc2 {[%emt 0:02:36]} Rae8 {[%emt 0:01:28]} 25. Qb2 {[%emt 0:00:20]} b5 {[%emt 0:05:45]} 26. Nc5 {[%emt 0:02:53]} Bc8 {[%emt 0:00:46]} 27. Qd2 {[%emt 0:04:06]} h5 {[%emt 0:01:26]} 28. R3c2 {[%emt 0:01:03]} h4 {[%emt 0:02:54]} 29. Nd3 {[%emt 0:14:57]} Nb8 {[%emt 0:07:25]} 30. Ne5 {[%emt 0:00:03]} Bf5 {[%emt 0:02:44]} 31. Rc5 {[%emt 0:01:30]} h3 {[%emt 0:00:54]} 32. Bf1 {[%emt 0:05:21]} Rxe5 {[%emt 0:04:06]} 33. dxe5 {[%emt 0:00:05]} Rxe5 {[%emt 0:01:05]} 34. Qxa5 {[%emt 0:00:25]} g5 {[%emt 0:04:08]} 35. Qc3 {[%emt 0:03:27]} f6 {[%emt 0:00:14]} 36. a4 {[%emt 0:00:29]} bxa4 {[%emt 0:01:45]} 37. bxa4 {[%emt 0:00:03]} Re7 {[%emt 0:00:55]} 38. a5 {[%emt 0:01:13]} Qe6 {[%emt 0:00:31]} 39. Qb2 {[%emt 0:01:32]} Be4 {[%emt 0:02:26]} 40. Be2 {[%emt 0:01:25]} Nd7 {[%emt 0:06:41]} 41. Rxc6 {[%emt 0:00:19]} Qf5 {[%emt 0:00:26]} 42. g4 {[%emt 0:00:25]} 1-0

[Event "3rd Sharjah Masters 2019"]
[Site "Sharjah"]
[Date "2019.03.26"]
[Round "5.36"]
[White "Mendonca, Leon Luke"]
[Black "Jinan, Jomon"]
[Result "1-0"]
[ECO "D35"]
[WhiteElo "2446"]
[BlackElo "1848"]
[Annotator "NA RC"]
[PlyCount "75"]
[EventDate "2019.03.22"]
[EventType "swiss"]
[EventCountry "UAE"]
[SourceTitle "playchess.com"]
[Source "ChessBase"]
[SourceQuality "1"]
[TimeControl "5400+30"]

1. d4 {[%emt 0:00:00]} d5 {[%emt 0:00:00]} 2. c4 {[%emt 0:00:00]} e6 {[%emt 0:00:00]} 3. Nc3 {[%emt 0:00:00]} Nf6 {[%emt 0:00:00]} 4. cxd5 {[%emt 0:00:00]} exd5 {[%emt 0:00:04]} 5. Bg5 {[%emt 0:00:00]} c6 {[%emt 0:00:06]} 6. e3 {[%emt 0:00:00]} Bf5 {[%emt 0:00:05]} 7. Qf3 {[%emt 0:00:02]} Bg6 {[%emt 0:00:06]} 8. Bxf6 {[%emt 0:00:06]} Qxf6 {[%emt 0:00:05]} 9. Qxf6 {[%emt 0:00:06]} gxf6 {[%emt 0:00:05]} 10. Nf3 {[%emt 0:00:05]} Nd7 {[%emt 0:01:57]} 11. Nh4 {[%emt 0:00:13]} Be7 {[%emt 0:06:47]} 12. Ne2 {[%emt 0:00:06]} Nb6 {[%emt 0:06:10]} 13. Ng3 {[%emt 0:00:10]} Bb4+ {[%emt 0:17:06]} 14. Kd1 {[%emt 0:00:05]} Na4 {[%emt 0:07:36]} 15. Ngf5 {[%emt 0:00:09]} Nxb2+ {[%emt 0:06:39]} 16. Kc2 {[%emt 0:00:41]} Nc4 {[%emt 0:01:59]} 17. Bxc4 {[%emt 0:01:09]} dxc4 {[%emt 0:00:02]} 18. Rhb1 {[%emt 0:00:25]} Ba3 {[%emt 0:15:48]} 19. Rxb7 {[%emt 0:00:43]} O-O {[%emt 0:00:43]} 20. Rab1 {[%emt 0:02:01]} a5 {[%emt 0:07:36]} 21. Rc7 {[%emt 0:02:24]} Rfc8 {[%emt 0:09:36]} 22. Rxc8+ {[%emt 0:00:36]} Rxc8 {[%emt 0:00:00]} 23. Rb7 {[%emt 0:00:09]} Bf8 {[%emt 0:06:01]} 24. Kc3 {[%emt 0:00:23]} a4 {[%emt 0:01:10]} 25. Kxc4 {[%emt 0:00:06]} a3 {[%emt 0:00:09]} 26. g4 {[%emt 0:00:57]} Ra8 {[%emt 0:00:14]} 27. f3 {[%emt 0:00:23]} Ra4+ {[%emt 0:02:16]} 28. Kb3 {[%emt 0:00:08]} Ra8 {[%emt 0:00:22]} 29. e4 {[%emt 0:00:10]} Rc8 {[%emt 0:01:53]} 30. Kc3 {[%emt 0:02:18]} Ra8 {[%emt 0:01:38]} 31. h3 {[%emt 0:00:32]} Rc8 {[%emt 0:00:53]} 32. Kd2 {[%emt 0:00:15]} Ra8 {[%emt 0:00:31]} 33. Rb6 {[%emt 0:00:32]} Rc8 {[%emt 0:00:52]} 34. d5 {[%emt 0:00:45]} cxd5 {[%emt 0:00:17]} 35. exd5 {[%emt 0:00:01]} Bc5 {[%emt 0:01:22]} 36. Rc6 {[%emt 0:01:46]} Bb4+ {[%emt 0:00:21]} 37. Kc2 {[%emt 0:00:16]} Rd8 {[%emt 0:00:34]} 38. Kb3 {[%emt 0:00:23]} 1-0

[Event "3rd Sharjah Masters 2019"]
[Site "Sharjah"]
[Date "2019.03.26"]
[Round "5.40"]
[White "Bouzidi, Ahmed"]
[Black "Tissir, Mohamed"]
[Result "0-1"]
[ECO "C60"]
[WhiteElo "2199"]
[BlackElo "2386"]
[Annotator "NA"]
[PlyCount "112"]
[EventDate "2019.03.22"]
[EventType "swiss"]
[EventCountry "UAE"]
[SourceTitle "playchess.com"]
[Source "ChessBase"]
[SourceQuality "1"]
[TimeControl "5400+30"]

1. e4 {[%emt 0:00:00]} e5 {[%emt 0:00:00]} 2. Nf3 {[%emt 0:00:01]} Nc6 {[%emt 0:00:03]} 3. Bb5 {[%emt 0:01:16]} Nge7 {[%emt 0:00:26]} 4. O-O {[%emt 0:04:17]} g6 {[%emt 0:00:00]} 5. d4 {[%emt 0:04:36]} exd4 {[%emt 0:01:11]} 6. Nxd4 {[%emt 0:07:22]} Bg7 {[%emt 0:00:20]} 7. Be3 {[%emt 0:03:29]} O-O {[%emt 0:05:01]} 8. Nc3 {[%emt 0:01:10]} a6 {[%emt 0:01:05]} 9. Be2 {[%emt 0:01:28]} d6 {[%emt 0:03:43]} 10. Qd2 {[%emt 0:01:25]} f5 {[%emt 0:05:46]} 11. Bc4+ {[%emt 0:07:56]} Kh8 {[%emt 0:00:17]} 12. Ne6 {[%emt 0:00:14]} Bxe6 {[%emt 0:00:08]} 13. Bxe6 {[%emt 0:00:05]} fxe4 {[%emt 0:03:13]} 14. Nxe4 {[%emt 0:00:23]} Nf5 {[%emt 0:00:05]} 15. Bg5 {[%emt 0:02:31]} Qe8 {[%emt 0:00:18]} 16. Bxf5 {[%emt 0:05:51]} gxf5 {[%emt 0:00:10]} 17. Nc3 {[%emt 0:03:13]} Qg6 {[%emt 0:00:46]} 18. f4 {[%emt 0:04:43]} Rae8 {[%emt 0:08:18]} 19. Rae1 {[%emt 0:05:10]} Nd4 {[%emt 0:02:42]} 20. Kh1 {[%emt 0:06:22]} Qf7 {[%emt 0:05:48]} 21. Bh4 {[%emt 0:02:26]} Qc4 {[%emt 0:03:19]} 22. Bf2 {[%emt 0:02:55]} b5 {[%emt 0:07:43]} 23. a3 {[%emt 0:03:01]} c6 {[%emt 0:10:30]} 24. h3 {[%emt 0:12:36]} d5 {[%emt 0:04:00]} 25. Bg1 {[%emt 0:03:39]} Ne6 {[%emt 0:11:43]} 26. Re2 {[%emt 0:03:57]} d4 {[%emt 0:01:10]} 27. Nd1 {[%emt 0:00:37]} Nc5 {[%emt 0:00:39]} 28. Rxe8 {[%emt 0:07:06]} Rxe8 {[%emt 0:00:02]} 29. Rf3 {[%emt 0:00:36]} Qe2 {[%emt 0:16:08]} 30. Rf2 {[%emt 0:02:24]} Qxd2 {[%emt 0:00:20]} 31. Rxd2 {[%emt 0:00:06]} Re1 {[%emt 0:00:04]} 32. b4 {[%emt 0:02:22]} Ne4 {[%emt 0:01:10]} 33. Rd3 {[%emt 0:00:06]} c5 {[%emt 0:00:01]} 34. bxc5 {[%emt 0:00:15]} Nxc5 {[%emt 0:00:11]} 35. Rd2 {[%emt 0:00:09]} Kg8 {[%emt 0:06:25]} 36. Kh2 {[%emt 0:00:52]} Ne6 {[%emt 0:01:06]} 37. g3 {[%emt 0:00:18]} h5 {[%emt 0:00:41]} 38. Bf2 {[%emt 0:00:40]} Re4 {[%emt 0:00:07]} 39. h4 {[%emt 0:01:51]} Bf8 {[%emt 0:00:28]} 40. Rd3 {[%emt 0:00:08]} Re2 {[%emt 0:00:17]} 41. c3 {[%emt 0:00:08]} dxc3 {[%emt 0:01:57]} 42. Rxc3 {[%emt 0:00:07]} Rd2 {[%emt 0:00:01]} 43. Rc1 {[%emt 0:01:18]} Bxa3 {[%emt 0:00:14]} 44. Ra1 {[%emt 0:00:41]} Bc5 {[%emt 0:00:18]} 45. Kg1 {[%emt 0:00:11]} a5 {[%emt 0:00:24]} 46. Bxc5 {[%emt 0:00:35]} Nxc5 {[%emt 0:00:01]} 47. Ne3 {[%emt 0:00:28]} a4 {[%emt 0:00:01]} 48. Rc1 {[%emt 0:00:16]} Nb3 {[%emt 0:00:39]} 49. Rc8+ {[%emt 0:00:44]} Kf7 {[%emt 0:00:01]} 50. Ra8 {[%emt 0:00:10]} Nd4 {[%emt 0:00:49]} 51. Ra6 {[%emt 0:00:59]} Ke8 {[%emt 0:00:34]} 52. Kf1 {[%emt 0:00:17]} Kd7 {[%emt 0:00:01]} 53. Nd5 {[%emt 0:00:21]} Nc2 {[%emt 0:00:24]} 54. Nc3 {[%emt 0:00:24]} a3 {[%emt 0:00:12]} 55. Rb6 {[%emt 0:01:40]} b4 {[%emt 0:00:31]} 56. Na4 {[%emt 0:00:43]} a2 {[%emt 0:01:14]} 0-1

[Event "3rd Sharjah Masters 2019"]
[Site "Sharjah"]
[Date "2019.03.26"]
[Round "5.42"]
[White "Rathnakaran, K.."]
[Black "Singgih, Diajeng Theresa"]
[Result "1-0"]
[ECO "C77"]
[WhiteElo "2361"]
[BlackElo "2164"]
[Annotator "NA"]
[PlyCount "157"]
[EventDate "2019.03.22"]
[EventType "swiss"]
[EventCountry "UAE"]
[SourceTitle "playchess.com"]
[Source "ChessBase"]
[SourceQuality "1"]
[TimeControl "5400+30"]

1. e4 {[%emt 0:00:00]} e5 {[%emt 0:00:00]} 2. Nf3 {[%emt 0:00:00]} Nc6 {[%emt 0:00:00]} 3. Bb5 {[%emt 0:00:00]} a6 {[%emt 0:00:00]} 4. Ba4 {[%emt 0:00:00]} Nf6 {[%emt 0:00:00]} 5. Qe2 {[%emt 0:00:00]} b5 {[%emt 0:00:20]} 6. Bb3 {[%emt 0:00:00]} Be7 {[%emt 0:01:00]} 7. d4 {[%emt 0:00:02]} d6 {[%emt 0:02:48]} 8. c3 {[%emt 0:00:08]} exd4 {[%emt 0:05:38]} 9. cxd4 {[%emt 0:00:20]} O-O {[%emt 0:00:39]} 10. O-O {[%emt 0:01:10]} Re8 {[%emt 0:02:47]} 11. a4 {[%emt 0:14:05]} Bb7 {[%emt 0:08:51]} 12. Ng5 {[%emt 0:04:59]} d5 {[%emt 0:02:35]} 13. e5 {[%emt 0:00:05]} Nxd4 {[%emt 0:01:57]} 14. Qd3 {[%emt 0:01:34]} Nxb3 {[%emt 0:06:22]} 15. exf6 {[%emt 0:00:09]} Bxf6 {[%emt 0:00:10]} 16. Qxh7+ {[%emt 0:00:54]} Kf8 {[%emt 0:00:11]} 17. Ra3 {[%emt 0:08:12]} Nxc1 {[%emt 0:20:14]} 18. Qh8+ {[%emt 0:01:47]} Ke7 {[%emt 0:00:02]} 19. Re3+ {[%emt 0:00:28]} Kd7 {[%emt 0:00:52]} 20. Qh3+ {[%emt 0:01:37]} Kc6 {[%emt 0:00:32]} 21. Nxf7 {[%emt 0:23:22]} Qc8 {[%emt 0:00:50]} 22. Rxc1+ {[%emt 0:00:41]} Kb6 {[%emt 0:00:10]} 23. Qg3 {[%emt 0:00:35]} Rxe3 {[%emt 0:04:41]} 24. fxe3 {[%emt 0:01:49]} c6 {[%emt 0:09:42]} 25. Ne5 {[%emt 0:18:54]} c5 {[%emt 0:08:50]} 26. b4 {[%emt 0:07:27]} c4 {[%emt 0:02:04]} 27. Nd3 {[%emt 0:04:33]} Qb8 {[%emt 0:05:22]} 28. Nf4 {[%emt 0:03:28]} g5 {[%emt 0:02:10]} 29. Nxd5+ {[%emt 0:00:05]} Bxd5 {[%emt 0:00:11]} 30. Qf2 {[%emt 0:00:05]} Qh8 {[%emt 0:04:12]} 31. Rd1 {[%emt 0:00:28]} Be5 {[%emt 0:03:44]} 32. e4+ {[%emt 0:01:18]} Kb7 {[%emt 0:00:35]} 33. Rxd5 {[%emt 0:02:01]} Rf8 {[%emt 0:04:09]} 34. Rd7+ {[%emt 0:00:29]} Kc8 {[%emt 0:00:23]} 35. Rf7 {[%emt 0:02:11]} Rxf7 {[%emt 0:01:46]} 36. Qxf7 {[%emt 0:00:18]} Qxh2+ {[%emt 0:00:16]} 37. Kf1 {[%emt 0:01:50]} Qf4+ {[%emt 0:01:11]} 38. Qxf4 {[%emt 0:00:06]} gxf4 {[%emt 0:00:17]} 39. axb5 {[%emt 0:00:06]} axb5 {[%emt 0:00:06]} 40. Na3 {[%emt 0:00:08]} Bd6 {[%emt 0:02:28]} 41. Nxb5 {[%emt 0:00:11]} Bxb4 {[%emt 0:00:12]} 42. Ke2 {[%emt 0:00:34]} Kb7 {[%emt 0:00:37]} 43. Kf3 {[%emt 0:00:44]} Kb6 {[%emt 0:00:08]} 44. Nd4 {[%emt 0:00:10]} Bd2 {[%emt 0:01:30]} 45. e5 {[%emt 0:00:17]} Kc5 {[%emt 0:00:44]} 46. Ke4 {[%emt 0:00:12]} Be3 {[%emt 0:00:41]} 47. Ne2 {[%emt 0:01:45]} Bd2 {[%emt 0:00:13]} 48. e6 {[%emt 0:01:26]} Kd6 {[%emt 0:00:38]} 49. Kf5 {[%emt 0:00:07]} Ke7 {[%emt 0:00:05]} 50. Ke5 {[%emt 0:01:15]} c3 {[%emt 0:01:04]} 51. Nd4 {[%emt 0:00:06]} Be3 {[%emt 0:00:19]} 52. Nc2 {[%emt 0:01:41]} Bc5 {[%emt 0:00:06]} 53. Kd5 {[%emt 0:00:08]} Be3 {[%emt 0:00:21]} 54. Nb4 {[%emt 0:00:18]} Bg1 {[%emt 0:00:28]} 55. Ke5 {[%emt 0:00:16]} Bh2 {[%emt 0:01:21]} 56. Nd5+ {[%emt 0:02:32]} Ke8 {[%emt 0:00:26]} 57. e7 {[%emt 0:00:16]} f3+ {[%emt 0:00:53]} 58. Ke6 {[%emt 0:00:07]} Be5 {[%emt 0:00:05]} 59. Kxe5 {[%emt 0:00:04]} Kd7 {[%emt 0:00:48]} 60. Kf6 {[%emt 0:00:48]} f2 {[%emt 0:00:07]} 61. Ne3 {[%emt 0:00:04]} Ke8 {[%emt 0:00:26]} 62. Ke6 {[%emt 0:00:11]} f1=Q {[%emt 0:00:16]} 63. Nxf1 {[%emt 0:00:02]} c2 {[%emt 0:00:06]} 64. Ne3 {[%emt 0:00:17]} c1=Q {[%emt 0:00:06]} 65. Nf5 {[%emt 0:00:53]} Qc8+ {[%emt 0:00:35]} 66. Ke5 {[%emt 0:00:28]} Kd7 {[%emt 0:00:32]} 67. g4 {[%emt 0:00:43]} Qh8+ {[%emt 0:01:12]} 68. Kf4 {[%emt 0:00:17]} Qf6 {[%emt 0:00:11]} 69. Ke4 {[%emt 0:02:18]} Qg6 {[%emt 0:00:20]} 70. Kf4 {[%emt 0:00:07]} Qf7 {[%emt 0:01:15]} 71. Ke4 {[%emt 0:01:05]} Kc6 {[%emt 0:00:47]} 72. Ke5 {[%emt 0:00:23]} Qg6 {[%emt 0:00:43]} 73. Kf4 {[%emt 0:00:29]} Kd5 {[%emt 0:00:29]} 74. Kg3 {[%emt 0:00:42]} Ke4 {[%emt 0:00:38]} 75. e8=Q+ {[%emt 0:00:13]} Qxe8 {[%emt 0:00:08]} 76. Nd6+ {[%emt 0:00:05]} Ke5 {[%emt 0:00:04]} 77. Nxe8 {[%emt 0:00:04]} Ke6 {[%emt 0:00:18]} 78. Kf4 {[%emt 0:00:07]} Kf7 {[%emt 0:00:04]} 79. Nd6+ {[%emt 0:00:05]} 1-0

[Event "3rd Sharjah Masters 2019"]
[Site "Sharjah"]
[Date "2019.03.26"]
[Round "5.43"]
[White "Gokhale, Chandrashekhar"]
[Black "Fenil, Shah"]
[Result "0-1"]
[ECO "A04"]
[WhiteElo "2185"]
[BlackElo "2360"]
[Annotator "NA"]
[PlyCount "52"]
[EventDate "2019.03.22"]
[EventType "swiss"]
[EventCountry "UAE"]
[SourceTitle "playchess.com"]
[Source "ChessBase"]
[SourceQuality "1"]
[TimeControl "5400+30"]

1. Nf3 {[%emt 0:00:00]} c5 {[%emt 0:00:00]} 2. g3 {[%emt 0:00:12]} Nc6 {[%emt 0:00:11]} 3. Bg2 {[%emt 0:00:09]} g6 {[%emt 0:00:20]} 4. O-O {[%emt 0:00:22]} Bg7 {[%emt 0:00:04]} 5. d3 {[%emt 0:00:23]} e5 {[%emt 0:00:48]} 6. e4 {[%emt 0:01:33]} Nge7 {[%emt 0:00:09]} 7. c3 {[%emt 0:05:14]} O-O {[%emt 0:02:29]} 8. Nbd2 {[%emt 0:07:09]} d6 {[%emt 0:01:33]} 9. a3 {[%emt 0:04:10]} h6 {[%emt 0:09:09]} 10. b4 {[%emt 0:02:42]} Be6 {[%emt 0:07:52]} 11. Rb1 {[%emt 0:09:17]} Qd7 {[%emt 0:03:14]} 12. Re1 {[%emt 0:09:59]} b6 {[%emt 0:13:08]} 13. Bb2 {[%emt 0:16:24]} f5 {[%emt 0:08:12]} 14. Nf1 {[%emt 0:06:45]} Rad8 {[%emt 0:06:44]} 15. h4 {[%emt 0:13:20]} Rf7 {[%emt 0:09:50]} 16. N3h2 {[%emt 0:09:54]} Rdf8 {[%emt 0:06:40]} 17. f3 {[%emt 0:02:20]} f4 {[%emt 0:08:09]} 18. Bc1 {[%emt 0:00:48]} h5 {[%emt 0:02:28]} 19. b5 {[%emt 0:03:14]} Na5 {[%emt 0:00:03]} 20. c4 {[%emt 0:00:29]} Bf6 {[%emt 0:00:46]} 21. gxf4 {[%emt 0:01:22]} Bxh4 {[%emt 0:00:56]} 22. Re2 {[%emt 0:00:48]} exf4 {[%emt 0:01:28]} 23. Bb2 {[%emt 0:00:01]} Bf6 {[%emt 0:01:57]} 24. Bxf6 {[%emt 0:00:24]} Rxf6 {[%emt 0:00:01]} 25. e5 {[%emt 0:00:11]} dxe5 {[%emt 0:00:06]} 26. Rxe5 {[%emt 0:00:01]} Qd4+ {[%emt 0:00:06]} 0-1

[Event "3rd Sharjah Masters 2019"]
[Site "Sharjah"]
[Date "2019.03.26"]
[Round "5.44"]
[White "Chekh Adm Khedr, Aram"]
[Black "Priyanka Nutakki"]
[Result "0-1"]
[ECO "C07"]
[WhiteElo "2155"]
[BlackElo "2297"]
[Annotator "NA"]
[PlyCount "64"]
[EventDate "2019.03.22"]
[EventType "swiss"]
[EventCountry "UAE"]
[SourceTitle "playchess.com"]
[Source "ChessBase"]
[SourceQuality "1"]
[TimeControl "5400+30"]

1. e4 {[%emt 0:00:00]} e6 {[%emt 0:00:00]} 2. d4 {[%emt 0:00:00]} d5 {[%emt 0:00:00]} 3. Nd2 {[%emt 0:00:00]} c5 {[%emt 0:00:00]} 4. Ngf3 {[%emt 0:00:00]} cxd4 {[%emt 0:00:04]} 5. exd5 {[%emt 0:00:05]} Qxd5 {[%emt 0:00:06]} 6. Bc4 {[%emt 0:00:05]} Qd7 {[%emt 0:00:24]} 7. O-O {[%emt 0:02:25]} Nc6 {[%emt 0:00:05]} 8. Nb3 {[%emt 0:01:16]} a6 {[%emt 0:00:10]} 9. a4 {[%emt 0:03:49]} Nf6 {[%emt 0:08:17]} 10. Nbxd4 {[%emt 0:06:04]} Nxd4 {[%emt 0:00:10]} 11. Nxd4 {[%emt 0:00:10]} Qc7 {[%emt 0:00:08]} 12. Bd3 {[%emt 0:06:45]} Bd6 {[%emt 0:00:49]} 13. h3 {[%emt 0:00:26]} O-O {[%emt 0:00:29]} 14. Re1 {[%emt 0:15:14]} Rd8 {[%emt 0:04:51]} 15. Nf3 {[%emt 0:03:47]} h6 {[%emt 0:04:35]} 16. Qe2 {[%emt 0:00:53]} Bd7 {[%emt 0:02:22]} 17. Ne5 {[%emt 0:04:14]} Rac8 {[%emt 0:13:54]} 18. Bd2 {[%emt 0:05:09]} Bc6 {[%emt 0:12:48]} 19. Ng4 {[%emt 0:10:34]} Qe7 {[%emt 0:15:38]} 20. Ne5 {[%emt 0:18:01]} Nd7 {[%emt 0:08:44]} 21. Nxc6 {[%emt 0:02:38]} Rxc6 {[%emt 0:00:02]} 22. Be4 {[%emt 0:00:08]} Rc7 {[%emt 0:00:04]} 23. Ba5 {[%emt 0:03:02]} b6 {[%emt 0:00:07]} 24. Bc3 {[%emt 0:00:07]} Nc5 {[%emt 0:02:26]} 25. Qg4 {[%emt 0:03:49]} f5 {[%emt 0:04:00]} 26. Bxf5 {[%emt 0:04:33]} exf5 {[%emt 0:00:01]} 27. Qxf5 {[%emt 0:00:01]} Qf7 {[%emt 0:00:25]} 28. Qg4 {[%emt 0:00:55]} Rf8 {[%emt 0:01:09]} 29. Re2 {[%emt 0:00:47]} Re7 {[%emt 0:04:20]} 30. Rae1 {[%emt 0:00:14]} Re4 {[%emt 0:00:37]} 31. Qxg7+ {[%emt 0:03:25]} Qxg7 {[%emt 0:00:06]} 32. Rxe4 {[%emt 0:00:04]} Qf7 {[%emt 0:01:26]} 0-1

[Event "3rd Sharjah Masters 2019"]
[Site "Sharjah"]
[Date "2019.03.26"]
[Round "5.46"]
[White "Thrish, Karthik"]
[Black "Amdouni, Zoubaier"]
[Result "0-1"]
[ECO "A06"]
[WhiteElo "2096"]
[BlackElo "2275"]
[Annotator "NA"]
[PlyCount "69"]
[EventDate "2019.03.22"]
[EventType "swiss"]
[EventCountry "UAE"]
[SourceTitle "playchess.com"]
[Source "ChessBase"]
[SourceQuality "1"]
[TimeControl "5400+30"]

1. Nf3 {[%emt 0:00:00]} d5 {[%emt 0:00:00]} 2. e3 {[%emt 0:00:06]} Nf6 {[%emt 0:00:15]} 3. c4 {[%emt 0:00:05]} e6 {[%emt 0:00:34]} 4. b3 {[%emt 0:00:16]} Nbd7 {[%emt 0:00:14]} 5. Bb2 {[%emt 0:00:12]} Bd6 {[%emt 0:00:11]} 6. d4 {[%emt 0:01:00]} c6 {[%emt 0:03:27]} 7. Nbd2 {[%emt 0:00:59]} Qe7 {[%emt 0:05:08]} 8. Ne5 {[%emt 0:08:02]} Ba3 {[%emt 0:01:21]} 9. Bxa3 {[%emt 0:02:47]} Qxa3 {[%emt 0:00:05]} 10. Nxd7 {[%emt 0:00:09]} Nxd7 {[%emt 0:01:33]} 11. Bd3 {[%emt 0:03:40]} O-O {[%emt 0:16:41]} 12. O-O {[%emt 0:05:15]} Qd6 {[%emt 0:01:08]} 13. Qc2 {[%emt 0:05:50]} h6 {[%emt 0:01:55]} 14. Rfd1 {[%emt 0:07:08]} b6 {[%emt 0:15:47]} 15. cxd5 {[%emt 0:05:21]} exd5 {[%emt 0:01:44]} 16. e4 {[%emt 0:05:35]} Bb7 {[%emt 0:04:18]} 17. e5 {[%emt 0:10:27]} Qe7 {[%emt 0:00:17]} 18. Nf3 {[%emt 0:00:53]} Rad8 {[%emt 0:07:06]} 19. Re1 {[%emt 0:02:00]} Nb8 {[%emt 0:02:04]} 20. e6 {[%emt 0:06:22]} fxe6 {[%emt 0:05:30]} 21. Ne5 {[%emt 0:00:55]} Qf6 {[%emt 0:03:45]} 22. Bh7+ {[%emt 0:01:22]} Kh8 {[%emt 0:00:01]} 23. Ng6+ {[%emt 0:01:43]} Kxh7 {[%emt 0:00:02]} 24. Nxf8+ {[%emt 0:00:05]} Kg8 {[%emt 0:00:08]} 25. Nxe6 {[%emt 0:02:32]} Re8 {[%emt 0:02:50]} 26. Ng5 {[%emt 0:05:53]} Rxe1+ {[%emt 0:07:53]} 27. Rxe1 {[%emt 0:00:02]} Qxg5 {[%emt 0:00:05]} 28. Re8+ {[%emt 0:00:23]} Kf7 {[%emt 0:00:01]} 29. Rxb8 {[%emt 0:00:07]} Ba6 {[%emt 0:00:24]} 30. Qxc6 {[%emt 0:03:51]} Qf5 {[%emt 0:06:37]} 31. Qe8+ {[%emt 0:00:18]} Kf6 {[%emt 0:00:01]} 32. Qf8+ {[%emt 0:00:05]} Kg6 {[%emt 0:00:03]} 33. Qxf5+ {[%emt 0:00:05]} Kxf5 {[%emt 0:00:02]} 34. Re8 {[%emt 0:00:06]} Kf6 {[%emt 0:00:14]} 35. Re5 {[%emt 0:00:05]} 0-1